Cogmind - Beta 10.2 @@@ ROGUE MODE // 2022.01.28 @ 00:59:45 Player: NoNeedToExplain Result: Self-destructed Performance ------------- Evolutions (2) 1000 Regions Visited (8) 1600 Robots Destroyed (136) 680 Value Destroyed (3869) 3869 Prototype IDs (5) 100 Alien Tech Used (0) 0 Bonus (261) 261 TOTAL SCORE: 7510 Bonus ------- High Alert Combat Kills 47 Follower Combat Kills 14 Entered Garrisons 200 Cogmind --------- Core Integrity 306/550 Matter 280/300 Energy 54/100 System Corruption 5% Temperature Cool (0) Movement Rolling (140) Ox4 Location -8/Garrison Parts ------- > --- POWER (1) -------- (None) > --- PROPULSION (2) --- Compact Wheel Compact Wheel > --- UTILITY (6) ------ Large Storage Unit High-capacity Storage Unit High-capacity Storage Unit High-capacity Storage Unit Medium Reactive Plating > --- WEAPON (2) ------- Grenade Launcher Improved Datajack > --- INVENTORY (34) --- Ion Engine Nuclear Core Wheel Improved Heat Sink Advanced Heat Sink Large Storage Unit Medium Matter Pod (100) Improved Sensor Array Advanced Signal Interpreter Medium Reactive Plating Medium Reactive Plating Relay Coupler [NC] (23) Relay Coupler [Grunt] (26) Relay Coupler [Grunt] (27) Relay Coupler [Grunt] (27) Relay Coupler [Demolisher] (17) Relay Coupler [Demolisher] (18) Relay Coupler [Hunter] (18) High-powered Tractor Beam Shock Rifle Pulse Rifle Plasma Cannon Plasma Cannon Plasma Cannon Slug Cannon EMP Blaster EMP Blaster Advanced EMP Blaster Advanced EMP Blaster Advanced EMP Blaster Grenade Launcher Rocket Launcher Datajack Axe Peak State ------------ > --- POWER ------------ Nuclear Core > --- PROPULSION ------- Compact Wheel Compact Wheel > --- UTILITY ---------- Advanced Heat Sink Large Storage Unit High-capacity Storage Unit High-capacity Storage Unit High-capacity Storage Unit Medium Reactive Plating > --- WEAPON ----------- Plasma Cannon Plasma Cannon > --- INVENTORY -------- Ion Engine Nuclear Core Wheel Improved Heat Sink Large Storage Unit Medium Matter Pod Improved Sensor Array Advanced Signal Interpreter Advanced Targeting Computer Improved Propulsion Shielding Medium Reactive Plating Medium Reactive Plating Relay Coupler [NC] Relay Coupler [Grunt] Relay Coupler [Demolisher] Relay Coupler [Demolisher] High-powered Tractor Beam Shock Rifle Pulse Rifle Plasma Cannon Slug Cannon EMP Blaster EMP Blaster EMP Blaster EMP Blaster Advanced EMP Blaster Advanced EMP Blaster Advanced EMP Blaster Grenade Launcher Grenade Launcher Rocket Launcher Datajack Improved Datajack Axe [Rating: 35] Favorites ----------- Power Light Angular Momentum Engine Engine Light Angular Momentum Engine Power Core Nuclear Core Propulsion Wheel Leg Aluminum Leg Wheel Wheel Utility Large Storage Unit Device Cooling System Storage Large Storage Unit Protection Hardened Medium Armor Plating Weapon Advanced Beam Cannon Energy Gun Spread Laser Energy Cannon Advanced Beam Cannon Ballistic Gun Shotgun Ballistic Cannon Slug Cannon Launcher Grenade Launcher Slashing Weapon Axe Special Melee Weapon Improved Datajack Build | -11 -10 -10 -9 -9 -9 -8 -8 -8 ------- Run | Scr Mat Min Mat Min Exi Min Mat Gar Slots Evolved 4 | . . . 2 . . . 2 . Power . | . . . . . . . . . Propulsion . | . . . . . . . . . Utility 4 | . . . 2 . . . 2 . Weapon . | . . . . . . . . . Parts Attached 118 | 7 16 11 33 . . 5 42 4 Power 10 | 1 . 2 2 . . 1 4 . Engine 9 | 1 . 2 2 . . 1 3 . Core 1 | . . . . . . . 1 . Reactor . | . . . . . . . . . Propulsion 18 | 2 5 2 4 . . 2 3 . Treads . | . . . . . . . . . Leg 1 | . . . 1 . . . . . Wheel 17 | 2 5 2 3 . . 2 3 . Hover . | . . . . . . . . . Flight . | . . . . . . . . . Utility 29 | 2 2 . 9 . . . 16 . Device 5 | 1 . . 1 . . . 3 . Storage 13 | 1 2 . 3 . . . 7 . Processor . | . . . . . . . . . Hackware . | . . . . . . . . . Protection 11 | . . . 5 . . . 6 . Artifact . | . . . . . . . . . Weapon 61 | 2 9 7 18 . . 2 19 4 Energy Gun 13 | 2 . 3 3 . . . 5 . Energy Cannon 17 | . . . 7 . . 1 8 1 Ballistic Gun 10 | . 6 2 2 . . . . . Ballistic Cannon 1 | . . . 1 . . . . . Launcher 17 | . 3 2 3 . . 1 6 2 Special Weapon . | . . . . . . . . . Impact Weapon . | . . . . . . . . . Slashing Weapon 2 | . . . 2 . . . . . Piercing Weapon . | . . . . . . . . . Special Melee Weapon 1 | . . . . . . . . 1 Unidentified Prototypes 5 | . . . 1 . . . 4 . Parts Lost 28 | . 1 5 8 . . 1 12 1 Power 4 | . . . 1 . . . 2 1 Propulsion 10 | . 1 2 3 . . 1 3 . Utility 4 | . . . . . . . 4 . Weapon 10 | . . 3 4 . . . 3 . Highest Loss Streak 4 | . 1 4 3 . . 1 4 1 Average Slot Usage (%) 98 | . 99 97 97 100 100 100 97 100 Engine 9 | . 14 14 10 11 11 11 3 . Core 1 | . . . . . . . 3 9 Wheel 20 | . 27 26 17 22 22 22 17 18 Device 4 | . 1 . 5 . . . 8 9 Storage 32 | . 26 28 32 33 33 33 36 36 Protection 5 | . . . 5 11 11 11 9 9 Energy Gun 5 | . 2 19 3 11 11 . 3 . Energy Cannon 7 | . . . 11 . . 7 12 15 Ballistic Gun 7 | . 24 7 4 11 11 11 . . Launcher 1 | . . . . . . 3 1 2 Naked Turns . | . . . . . . . . . Heaviest Build 155 | 14 43 47 75 71 71 72 155 154 Greatest Support 32 | 20 32 32 22 22 22 22 32 32 Greatest Overweight (x) 7 | . 4 2 7 3 3 3 5 4 Average Overweight (x) 2 | . 1 1 3 3 3 3 3 4 Largest Inventory Capacity 34 | 6 16 16 22 22 22 22 34 34 Average Capacity 22 | 5 14 16 21 22 22 22 30 34 Most Carried 34 | 6 16 16 22 22 22 22 34 34 Average Carried 22 | 3 14 15 21 21 22 21 28 33 Final Capacity 34 | 6 16 16 22 22 22 22 34 34 Final Carried 34 | 5 16 15 22 22 22 21 32 34 Class Distribution -------------------- 72% | Hauler-Mutant 27% | Mutant Dominant Class ---------------- Mutant | -10/Materials Mutant | -10/Mines Hauler-Mutant | -9/Materials Hauler-Mutant | -9/Mines Hauler-Mutant | -9/Exiles Hauler-Mutant | -8/Mines Hauler-Mutant | -8/Materials Hauler-Mutant | -8/Garrison Resources | -11 -10 -10 -9 -9 -9 -8 -8 -8 ----------- Run | Scr Mat Min Mat Min Exi Min Mat Gar Matter Collected 2431 | 254 288 394 650 . . 197 467 181 Remotely . | . . . . . . . . . Salvage Created 4123 | 107 469 131 1331 . . 286 1547 252 Parts 267 | 2 35 19 87 . . 27 74 23 Haulers Intercepted 9 | . 2 . 4 . . . 3 . Recyclers Shooed 2 | . . . 1 . . . 1 . Parts Field Recycled . | . . . . . . . . . Retrieved Matter . | . . . . . . . . . Parts Self-Destructed . | . . . . . . . . . Prevented . | . . . . . . . . . Kills | -11 -10 -10 -9 -9 -9 -8 -8 -8 ------- Run | Scr Mat Min Mat Min Exi Min Mat Gar Combat Hostiles Destroyed 108 | . 14 10 32 . . 14 25 13 Guns 28 | . 8 7 5 . . 3 5 . Cannons 28 | . . . 16 . . 2 9 1 AOE 50 | . 6 3 11 . . 9 9 12 Classes Destroyed 12 | 2 4 1 1 . . 1 2 1 Worker 6 | . 2 . 4 . . . . . Builder 2 | . . . 2 . . . . . Tunneler 3 | 1 . . . . . 1 1 . Hauler 9 | . 2 . 4 . . . 3 . Recycler 6 | 1 . . 1 . . . 4 . Mechanic 1 | . . . . . . . 1 . Watcher 1 | . . . . . . . 1 . Swarmer 39 | . 3 7 7 . . 8 4 10 Grunt 50 | . 11 1 16 . . 5 15 2 Duelist 1 | . . . . . . 1 . . Sentry 16 | . . 1 9 . . . 6 . Hunter 1 | . . . . . . . . 1 Best Kill Streak 11 | 2 4 6 11 . . 4 8 7 Combat Bots Only 9 | . 3 6 9 . . 4 4 7 Max Kills in Single Turn 4 | 1 3 2 2 . . 4 4 3 Gunslinging . | . . . . . . . . . Exploded 4 | . 3 2 2 . . 4 4 3 Melee . | . . . . . . . . . Uniques/NPCs Destroyed 1 | . . 1 . . . . . . YI-UF0 (-10/Mines) Combat | -11 -10 -10 -9 -9 -9 -8 -8 -8 -------- Run | Scr Mat Min Mat Min Exi Min Mat Gar Damage Taken 4841 | . 373 592 1210 . . 519 1896 251 Core 819 | . 81 165 182 . . 147 235 9 Absorbed by Shields . | . . . . . . . . . Core Remaining (%) 39 | 100 . 1 . . . 17 . . Volleys Fired 271 | 5 34 22 101 . . 23 74 12 Largest 2 | 2 2 2 2 . . 2 2 2 Hottest 160 | 90 46 130 136 . . 91 160 160 Shots Fired 494 | 10 62 39 195 . . 39 134 15 Gun 215 | 10 56 36 73 . . 16 24 . Cannon 232 | . . . 112 . . 14 99 7 Launcher 47 | . 6 3 10 . . 9 11 8 Special . | . . . . . . . . . Kinetic 147 | . 56 22 49 . . 16 4 . Thermal 278 | 5 . 14 136 . . 14 102 7 Explosive 36 | . 6 3 10 . . 9 5 3 Electromagnetic 33 | 5 . . . . . . 23 5 Robot Hit Streak 18 | 5 7 16 14 . . 7 18 2 Robot Miss Streak 7 | 2 3 7 4 . . 1 3 3 Penetration Max . | . . . . . . . . . Secondary Targets 2 | . 2 . . . . . . . Max Gunslinging Chain 1 | . 1 . . . . . . . Shots Hit Robots 330 | 6 48 31 123 . . 26 92 4 Core Hits 223 | 2 31 21 79 . . 22 52 16 Critical Hits 9 | . . . 6 . . 3 . . Critical Kills 5 | . . . 3 . . 2 . . Critical Parts Destroyed 3 | . . . 2 . . 1 . . Melee Attacks 2 | . . . 2 . . . . . Impact . | . . . . . . . . . Slashing 2 | . . . 2 . . . . . Piercing . | . . . . . . . . . Sneak Attacks . | . . . . . . . . . Combat Hostiles . | . . . . . . . . . Follow-up Attacks . | . . . . . . . . . Damage Inflicted 8829 | 97 867 543 2854 . . 958 2890 620 Guns 1968 | 65 426 410 627 . . 176 264 . Cannons 3335 | . . . 1392 . . 182 1685 76 Explosions 3526 | 32 441 133 835 . . 600 941 544 Melee . | . . . . . . . . . Ramming . | . . . . . . . . . Kinetic 1370 | . 426 294 425 . . 176 49 . Thermal 3845 | 70 . 116 1594 . . 182 1736 147 Explosive 2901 | . 441 133 835 . . 600 631 261 Electromagnetic 713 | 27 . . . . . . 474 212 Impact . | . . . . . . . . . Slashing . | . . . . . . . . . Piercing . | . . . . . . . . . Highest Corruption 5 | . . . 3 3 3 3 5 5 Average Corruption 3 | . . . 2 3 3 3 5 5 Corruption Purged . | . . . . . . . . . Effects 42 | . . . 8 3 3 8 8 12 Message Errors 11 | . . . 3 2 2 . 2 2 Matter Fused 13 | . . . 2 1 . 4 1 5 Heat Flow Errors 5 | . . . 1 . 1 1 . 2 Energy Discharges 5 | . . . 1 . . 1 1 2 Data Loss (minor) 5 | . . . . . . 2 2 1 Targeting Errors 3 | . . . 1 . . . 2 . Overload Shots . | . . . . . . . . . Overflow Damage 128 | . 20 2 27 . . 27 45 7 Projectiles 64 | . . . 27 . . . 37 . Explosions 64 | . 20 2 . . . 27 8 7 Melee . | . . . . . . . . . Knockbacks 1 | . . . 1 . . . . . Impact . | . . . . . . . . . Kinetic 1 | . . . 1 . . . . . Secondary . | . . . . . . . . . Self-Inflicted Damage 381 | . 49 28 83 . . 65 132 24 Shots 17 | . 2 2 3 . . 4 4 2 Rammed . | . . . . . . . . . Targets Rammed . | . . . . . . . . . Kicked . | . . . . . . . . . Crushed . | . . . . . . . . . Highest Temperature 346 | 100 4 288 285 . 95 346 331 251 Average Temperature 95 | 46 2 113 85 . 52 119 109 73 Received Heat Transfer 1665 | . 165 18 366 . . 225 855 36 Effects 2 | . . . . . . 1 1 . Interference 1 | . . . . . . . 1 . Short Circuit 1 | . . . . . . 1 . . Siege Activations . | . . . . . . . . . Robots Corrupted . | . . . . . . . . . Combat Hostiles . | . . . . . . . . . Parts Fried 1 | . . . . . . . 1 . Impact Corruptions . | . . . . . . . . . Robots Melted 2 | . . . . . . . 2 . Combat Hostiles 2 | . . . . . . . 2 . Parts Melted 11 | . . 1 2 . . 2 6 . Heat Transferred 6953 | 111 . 162 2787 . . 333 3360 200 Parts Sabotaged . | . . . . . . . . . Parts Stolen . | . . . . . . . . . Parts Stripped . | . . . . . . . . . Power Chain Reactions 4 | 1 . . . . . . . 3 Missiles Intercepted . | . . . . . . . . . Alert | -11 -10 -10 -9 -9 -9 -8 -8 -8 ------- Run | Scr Mat Min Mat Min Exi Min Mat Gar Peak Influence 690 | 10 233 195 415 88 . 494 418 690 Initial 208 | . 6 . 27 88 . . 192 208 Average 219 | 2 97 104 224 88 . 336 228 509 Maximum Alert Level 2 | . 1 . 2 . . 2 2 2 Low Security (%) 47 | 100 87 100 35 100 . 10 27 . Level 1 40 | . 12 . 64 . . 48 65 23 Level 2 12 | . . . . . . 41 6 76 Level 3 . | . . . . . . . . . Level 4 . | . . . . . . . . . Level 5 . | . . . . . . . . . High Security . | . . . . . . . . . Max Security . | . . . . . . . . . Squads Dispatched 16 | . 5 . 7 1 . . 3 . Investigation 7 | . 2 . 3 1 . . 1 . Extermination . | . . . . . . . . . Reinforcement 7 | . 3 . 4 . . . . . Assault . | . . . . . . . . . Garrison 2 | . . . . . . . 2 . Intercept . | . . . . . . . . . Construction Impeded . | . . . . . . . . . Haulers Reinforced . | . . . . . . . . . Stealth | -11 -10 -10 -9 -9 -9 -8 -8 -8 --------- Run | Scr Mat Min Mat Min Exi Min Mat Gar Distress Signals 11 | . 1 . 6 . . . 4 . Communications Jammed . | . . . . . . . . . Distress Signals . | . . . . . . . . . Times Spotted 175 | . 29 13 54 . . 20 39 20 Peak Tracking Total 8 | . 4 3 7 . . 4 7 8 Tactical Retreats 16 | . . . 5 . . 5 6 . Traps | -11 -10 -10 -9 -9 -9 -8 -8 -8 ------- Run | Scr Mat Min Mat Min Exi Min Mat Gar Traps Triggered 19 | . 1 . 5 . . . 1 12 Indirectly . | . . . . . . . . . Trap Hack Attempts . | . . . . . . . . . Triggered . | . . . . . . . . . Disarmed . | . . . . . . . . . Reprogrammed . | . . . . . . . . . Reused . | . . . . . . . . . Traps Extracted . | . . . . . . . . . Installed . | . . . . . . . . . Triggered . | . . . . . . . . . Machines | -11 -10 -10 -9 -9 -9 -8 -8 -8 ---------- Run | Scr Mat Min Mat Min Exi Min Mat Gar Machines Disabled 9 | . . . 4 . . . 3 2 Max in Single Turn 2 | . . . 2 . . . 1 1 Garrison Relay 2 | . . . . . . . . 2 Machines Sabotaged . | . . . . . . . . . Garrisons Compromised . | . . . . . . . . . Overloaded Fab Kills . | . . . . . . . . . Fab Network Shutdowns . | . . . . . . . . . Hacking | -11 -10 -10 -9 -9 -9 -8 -8 -8 --------- Run | Scr Mat Min Mat Min Exi Min Mat Gar Machines Accessed 18 | . 5 . 6 1 . . 6 . Terminals 16 | . 5 . 6 . . . 5 . Fabricators . | . . . . . . . . . Repair Stations . | . . . . . . . . . Recycling Units . | . . . . . . . . . Scanalyzers . | . . . . . . . . . Garrison Access 1 | . . . . . . . 1 . Total Hacks 58 | . 16 . 19 1 . . 22 . Successful 23 | . 6 . 7 1 . . 9 . Failed 35 | . 10 . 12 . . . 13 . Catastrophic 7 | . . . 2 . . . 5 . Database Lockouts . | . . . . . . . . . Manual 47 | . 16 . 16 . . . 15 . Terminals 56 | . 16 . 19 . . . 21 . Fabricators . | . . . . . . . . . Repair Stations . | . . . . . . . . . Recycling Units . | . . . . . . . . . Scanalyzers . | . . . . . . . . . Garrison Access 1 | . . . . . . . 1 . Terminal Hacks 14 | . 3 . 4 1 . . 6 . Open Door 1 | . . . . 1 . . . . Branch Access Points 1 | . . . . . . . 1 . Alert Level 3 | . . . 1 . . . 2 . Unreport Threat 7 | . 1 . 3 . . . 3 . Recall Investigation 1 | . 1 . . . . . . . Recall Reinforcements 1 | . 1 . . . . . . . Fabricator Hacks . | . . . . . . . . . Repair Station Hacks . | . . . . . . . . . Recycling Unit Hacks . | . . . . . . . . . Scanalyzer . | . . . . . . . . . Garrison Access Hacks 1 | . . . . . . . 1 . Unlock Access 1 | . . . . . . . 1 . Unauthorized Hacks 8 | . 3 . 3 . . . 2 . Terminals 8 | . 3 . 3 . . . 2 . Botnet 8 | . 3 . 3 . . . 2 . Fabricators . | . . . . . . . . . Repair Stations . | . . . . . . . . . Recycling Units . | . . . . . . . . . Scanalyzers . | . . . . . . . . . Garrison Access . | . . . . . . . . . Data Cores Recovered . | . . . . . . . . . Used . | . . . . . . . . . Hacking Detections 16 | . 5 . 6 . . . 5 . Full Trace Events 3 | . 1 . 2 . . . . . Feedback Events . | . . . . . . . . . Feedback Blocked . | . . . . . . . . . Robot Schematics Acquired . | . . . . . . . . . Robots Built . | . . . . . . . . . Matter . | . . . . . . . . . Time . | . . . . . . . . . Total Robot Build Rating . | . . . . . . . . . Part Schematics Acquired . | . . . . . . . . . Parts Built . | . . . . . . . . . Matter . | . . . . . . . . . Time . | . . . . . . . . . Total Part Build Rating . | . . . . . . . . . Parts Repaired . | . . . . . . . . . Time . | . . . . . . . . . Parts Recycled . | . . . . . . . . . Recycled Matter . | . . . . . . . . . Retrieved Matter . | . . . . . . . . . Retrieved Components . | . . . . . . . . . Parts Scanalyzed . | . . . . . . . . . Part Schematics Acquired . | . . . . . . . . . Parts Damaged . | . . . . . . . . . Bothacking | -11 -10 -10 -9 -9 -9 -8 -8 -8 ------------ Run | Scr Mat Min Mat Min Exi Min Mat Gar Used RIF Installer . | . . . . . . . . . Robots Hacked . | . . . . . . . . . Non-combat . | . . . . . . . . . Combat . | . . . . . . . . . Robot Hacks Applied . | . . . . . . . . . Relay Couplers Released 8 | . . . . . . . . 8 Machine Destruction 8 | . . . . . . . . 8 Robots Rewired . | . . . . . . . . . Allies Hacked . | . . . . . . . . . Hacks Repelled . | . . . . . . . . . Allies | -11 -10 -10 -9 -9 -9 -8 -8 -8 -------- Run | Scr Mat Min Mat Min Exi Min Mat Gar Total Allies 1 | . . 1 . . . . . . Largest Group 1 | . . 1 1 . . . . . Highest-Rated Group 8 | . . 8 8 . . . . . Highest-Rated Ally 8 | . . 8 8 . . . . . Total Orders . | . . . . . . . . . Ally Attacks 5 | . . 5 . . . . . . Total Damage 45 | . . 45 . . . . . . Kills 2 | . . 2 . . . . . . Allies Corrupted . | . . . . . . . . . Allies Melted . | . . . . . . . . . Intel | -11 -10 -10 -9 -9 -9 -8 -8 -8 ------- Run | Scr Mat Min Mat Min Exi Min Mat Gar Robot Analysis Total . | . . . . . . . . . Derelict Logs Recovered 2 | . . 2 . . . . . . Drone Launches . | . . . . . . . . . Drone Recoveries . | . . . . . . . . . Exploration | -11 -10 -10 -9 -9 -9 -8 -8 -8 ------------- Run | Scr Mat Min Mat Min Exi Min Mat Gar Turns Passed 5368 | 61 823 644 1496 168 143 382 1139 512 Spaces Moved 3323 | 38 636 532 793 144 125 275 505 275 Core 2 | 2 . . . . . . . . Treads . | . . . . . . . . . Legs . | . . . . . . . . . Wheels 3321 | 36 636 532 793 144 125 275 505 275 Hover . | . . . . . . . . . Flight . | . . . . . . . . . Fastest Speed 50 | 50 80 100 105 115 115 110 120 140 Average Speed 115 | 78 99 103 120 115 115 112 131 140 Slowest Speed 150 | 80 120 120 150 115 115 115 150 140 Overloaded Moves . | . . . . . . . . . Propulsion Burnouts . | . . . . . . . . . Robots Hopped . | . . . . . . . . . Cave-ins Triggered . | . . . . . . . . . Exploration Rate (%) 56 | 4 98 91 78 23 51 59 47 57 Regions Visited 8 Branch Regions 4 Pre-discovered Areas . | . . . . . . . . . Known Exits Taken 1 | . . . . . . . 1 . Unknown Exits Taken 7 | 1 1 1 1 1 1 1 . . Scrap Searched 3 | . . 3 . . . . . . Spaces Dug 18 | . 9 . 2 . . . 7 . Terrain Destroyed 264 | 6 45 23 79 . . 66 43 2 Melee 2 | . . . 2 . . . . . Projectile 20 | . . . 7 . . . 13 . AOE 242 | 6 45 23 70 . . 66 30 2 Terrain Rammed . | . . . . . . . . . Walls Destroyed . | . . . . . . . . . Machines Disabled . | . . . . . . . . . Actions | -11 -10 -10 -9 -9 -9 -8 -8 -8 --------- Run | Scr Mat Min Mat Min Exi Min Mat Gar Total 4363 | 55 768 587 1139 147 124 308 848 387 Wait 391 | . 45 15 159 2 . 1 168 1 Move 3316 | 37 635 531 792 143 124 274 505 275 Hop . | . . . . . . . . . Pick Up 103 | 6 20 3 30 1 . 2 33 8 Fast Attach 33 | 6 7 4 9 . . . 7 . Attach 27 | 1 . 4 7 . . 1 14 . Detach 7 | . 2 2 . . . . 3 . Swap 59 | . 9 3 17 . . 4 21 5 Drop 74 | . 16 3 22 1 . 3 23 6 Fire 271 | 5 34 22 101 . . 23 74 12 Melee 2 | . . . 2 . . . . . Ram . | . . . . . . . . . Kick . | . . . . . . . . . Crush . | . . . . . . . . . Escape Stasis 80 | . . . . . . . . 80 Rewire . | . . . . . . . . . Trap . | . . . . . . . . . Miscellaneous . | . . . . . . . . . Route ------- -11/Scrapyard -10/Materials (discovered 4 exits: *Mat x3 / [*Min]) -10/Mines (discovered 2 exits: *Mat x2) -9/Materials (discovered 4 exits: *Mat x2 / *Min / [*Sto]) -9/Mines -9/Exiles (discovered 2 exits: [*Min x2]) -8/Mines -8/Materials (discovered 2 exits: [*Fac] / Gar) -8/Garrison (discovered 2 exits: [*Mat x2]) History --------- Turn | Location | Event 23 | -11/Scrapyard | Discovered new exit (range 16) 62 | -11/Scrapyard | Entered Materials 108 | -10/Materials | Discovered new exit (range 15) 300 | -10/Materials | Build established: Mutant 435 | -10/Materials | Discovered new exit (range 11) 443 | -10/Materials | Discovered new exit (range 15) 646 | -10/Materials | Discovered new exit (range 16) 885 | -10/Materials | Entered Mines 953 | -10/Mines | Joined a pair of Derelicts in attacking an 0b10 outpost 1022 | -10/Mines | Discovered new exit (range 8) 1042 | -10/Mines | Core integrity fell below 50% 1062 | -10/Mines | Core integrity fell below 20% 1062 | -10/Mines | Destroyed YI-UF0 1090 | -10/Mines | Lost 4 parts (1n3w) 1097 | -10/Mines | Assisted by bots powering up and referring to "LRC-V3" 1151 | -10/Mines | Discovered new exit (range 16) 1232 | -10/Mines | Learned Materials terminal intel 1253 | -10/Mines | A weapon hastily lodged in a ceiling crevice suddenly fell to the ground 1260 | -10/Mines | Learned Materials terminal intel 1529 | -10/Mines | Entered Materials 1529 | -9/Materials | Accompanied by 1 ally 1529 | -9/Materials | Evolved 2 slots: Utility x2 1530 | -9/Materials | Loaded intel: 12 terminal locations 1790 | -9/Materials | Destroyed 9 combat bots 1844 | -9/Materials | Build established: Hauler-Mutant 2447 | -9/Materials | Lost 3 parts (1n2w) 2464 | -9/Materials | Discovered new exit (range 13) 2528 | -9/Materials | Discovered new exit (range 11) 2656 | -9/Materials | Discovered new exit (range 13) 2853 | -9/Materials | Discovered new exit (range 5) 3025 | -9/Materials | Entered Mines 3081 | -9/Mines | Deemed a non-threat by the Exiles lab entrance 3081 | -9/Mines | Discovered new exit (range 5) 3147 | -9/Mines | Met a Derelict shopkeep closing up shop 3193 | -9/Mines | Entered Exiles 3208 | -9/Exiles | Discovered new exit (range 15) 3225 | -9/Exiles | Met 8R-AWN 3242 | -9/Exiles | Met EX-HEX 3287 | -9/Exiles | Met EX-DEC 3327 | -9/Exiles | Discovered new exit (range 10) 3336 | -9/Exiles | Entered Mines 3345 | -8/Mines | Discovered new exit (range 7) 3368 | -8/Mines | Core integrity fell below 50% 3596 | -8/Mines | Core integrity fell below 20% 3718 | -8/Mines | Entered Materials 3718 | -8/Materials | Evolved 2 slots: Utility x2 3719 | -8/Materials | Loaded intel: 12 terminal locations 4243 | -8/Materials | Lost 4 parts (1p1n2u) 4627 | -8/Materials | Discovered new exit (range 4) 4678 | -8/Materials | Garrison activated, responded to threat 4846 | -8/Materials | Lost 4 parts (1n2u1w) 4856 | -8/Materials | Identified exit to Garrison 4857 | -8/Materials | Entered Garrison 4888 | -8/Garrison | Triggered checkpoint 4932 | -8/Garrison | Triggered checkpoint 4957 | -8/Garrison | Destroyed 7 combat bots 4977 | -8/Garrison | Garrison Relay disabled 5165 | -8/Garrison | Discovered new exit (range 10) 5224 | -8/Garrison | Garrison Relay disabled 5240 | -8/Garrison | Triggered checkpoint 5312 | -8/Garrison | Triggered checkpoint 5359 | -8/Garrison | Spotted B-75 Beast 5362 | -8/Garrison | Discovered new exit (range 14) 5369 | -8/Garrison | Self-destructed Last Messages --------------- 05271_ Field strength at 40. 05272_ Field strength at 30. 05273_ Field strength at 20. 05274_ Field strength at 10. 05275_ Stasis field depleted. 05277_ CCUN,MD=IPZZ#JWGF%0VI=WOL 05312_ Beams of light sweep through the air. An alarm sounds. 05313_ G-47 Trooper destroyed. 05320_ Acquired 34 matter. 05321_ Acquired 30 matter. 05359_ Triggered Alarm Trap. 05359_ An alarm sounds. 05362_ EXIT=FOUND 05363_ Triggered Alarm Trap. 05363_ An alarm sounds. 05364_ Nuclear Core destroyed. 05366_ C-30 ARC bursts open, deploying its payload. 05366_ G-50 Soldier unfolds itself. 05366_ G-47 Trooper unfolds itself. 05367_ Relay Coupler [Sentry] fries itself. Map ----- +----------------------------------------------------+ | ????????????????????????????????????????????# | | ??????????????????????????????????????#####?# ## | | ??????????????????????????????????????# ## #? | | ?????????????????????????????????######" # #? | | ??????????????????????????????? * ## | | ???????????????????????????????? % | | ???????????????????????????????? [ [ | | ?????????????????????????????????# ?# ## # | | ?????????????????????????????????# ## ##[ [## | | ?????????????????????????????????" *%= [ | | ?????????????????????????????????" | | ?????????????????????????????????" | | ?????????????????????????????????" | | ?????????????????????????????????# ## ## ## | | ?????????????????????????????????# ## ## #? | | ?????????????????????????????????# #? | | ?????????????????????????????????# #? | | ?????????????????????????????????# #? | | ?????????????????????????????????## ## !=## #? | | ??????????????????????????????????# ## % [## #? | | ??????????????????????????????????# ## ##### #? | | ??????????????????????????????????# ## #???# #? | | ????????????????????????###???????# # #???# #? | | ???????????????????????? #???????# ####???# #? | | ????????????????????????#Y#???????# #??????# ## | | ????????????????????????#@#???????# #??????# | | ????????????????????????# #???????# #??????# | | ?????????????????# #####g######### #??????# | | ??????????????# " " % #??????###### | | ?????????????????# # ^ #???????????? | | ?????????????????????# #############???????????? | | ?????????????????????# ????????????????????????? | | ?????????????????????# ????????????????????????? | | ?????????????????????# ????????????????????????? | | ?????????????????????# ????????????????????????? | | ?????????????????????# ????????????????????????? | | ?????????????????????# ????????????????????????? | | ?????????????????????# ????????????????????????? | | ?????????????????????# ?????????????????????????? | | ????????????????????? ?????????????????????????? | | ?????????????????????